[Event "48th Indian U15-ch Girls 2023"]
[Site "Jalgaon"]
[Date "2023.12.27"]
[Round "1.1"]
[White "Kanishka Choudhary"]
[Black "Mrittika Mallick"]
[Result "0-1"]
[WhiteElo "1303"]
[BlackElo "1970"]
[PlyCount "74"]
[EventDate "2023.12.30"]
[EventType "swiss"]
[EventCountry "IND"]
[TimeControl "5400+30"]

1. e4 {[%emt 0:00:21]} c5 {[%emt 0:00:31]} 2. Nf3 {[%emt 0:00:17]} d6 {[%emt 0:00:20]} 3. d4 {[%emt 0:00:18]} cxd4 {[%emt 0:00:11]} 4. Nxd4 {[%emt 0:00:14]} Nf6 {[%emt 0:00:09]} 5. f3 {[%emt 0:00:31]} e5 {[%emt 0:00:28]} 6. Nb3 {[%emt 0:00:31]} Be6 {[%emt 0:01:32]} 7. c4 {[%emt 0:02:24]} Be7 {[%emt 0:08:02]} 8. Nc3 {[%emt 0:04:12]} a5 {[%emt 0:04:41]} 9. Be3 {[%emt 0:07:28]} a4 {[%emt 0:06:10]} 10. Nd2 {[%emt 0:12:55]} Qa5 {[%emt 0:01:54]} 11. Nd5 {[%emt 0:11:27]} Nxd5 {[%emt 0:04:39]} 12. cxd5 {[%emt 0:04:06]} Bd7 {[%emt 0:01:45]} 13. Be2 {[%emt 0:07:08]} Bh4+ {[%emt 0:08:28]} 14. g3 {[%emt 0:01:27]} Bf6 {[%emt 0:01:31]} 15. O-O {[%emt 0:05:56]} b5 {[%emt 0:00:39]} 16. Rc1 {[%emt 0:05:08]} O-O {[%emt 0:04:45]} 17. Nb1 {[%emt 0:08:08]} Na6 {[%emt 0:03:12]} 18. Qd2 {[%emt 0:04:13]} Qd8 {[%emt 0:05:30]} 19. Na3 {[%emt 0:04:41]} Qb8 {[%emt 0:04:17]} 20. Qd3 {[%emt 0:07:34]} Nb4 {[%emt 0:02:35]} 21. Qd2 {[%emt 0:04:49]} Bd8 {[%emt 0:00:59]} 22. Ra1 {[%emt 0:05:46]} Ba5 {[%emt 0:01:42]} 23. Qd1 {[%emt 0:00:50]} Qb7 {[%emt 0:05:46]} 24. Nc2 {[%emt 0:00:39]} Na6 {[%emt 0:01:45]} 25. Bd2 {[%emt 0:00:46]} Bb6+ {[%emt 0:01:56]} 26. Be3 {[%emt 0:00:19]} f5 {[%emt 0:05:25]} 27. Bxb6 {[%emt 0:00:44]} Qxb6+ {[%emt 0:00:02]} 28. Kg2 {[%emt 0:00:09]} fxe4 {[%emt 0:01:03]} 29. fxe4 {[%emt 0:00:04]} Nc5 {[%emt 0:00:17]} 30. Bf3 {[%emt 0:01:08]} b4 {[%emt 0:00:53]} 31. Ne1 {[%emt 0:00:53]} Bb5 {[%emt 0:00:27]} 32. Rf2 {[%emt 0:00:23]} Nxe4 {[%emt 0:00:22]} 33. Rc2 {[%emt 0:00:24]} Ng5 {[%emt 0:00:51]} 34. Rac1 {[%emt 0:00:14]} e4 {[%emt 0:01:12]} 35. Bg4 {[%emt 0:00:19]} Bf1+ {[%emt 0:03:14]} 36. Kh1 {[%emt 0:00:15]} Bc4 {[%emt 0:02:01]} 37. Be2 {[%emt 0:00:56]} Nh3 {[%emt 0:00:09]} 0-1

[Event "48th Indian U15-ch Girls 2023"]
[Site "Jalgaon"]
[Date "2023.12.27"]
[Round "1.2"]
[White "Shubhi Gupta"]
[Black "Sahana Shainsha"]
[Result "1-0"]
[WhiteElo "1902"]
[BlackElo "1300"]
[PlyCount "89"]
[EventDate "2023.12.30"]
[EventType "swiss"]
[EventCountry "IND"]
[TimeControl "5400+30"]

1. d4 {[%emt 0:01:41]} Nf6 {[%emt 0:00:22]} 2. Nf3 {[%emt 0:00:29]} e6 {[%emt 0:00:31]} 3. Bg5 {[%emt 0:00:40]} h6 {[%emt 0:01:11]} 4. Bxf6 {[%emt 0:00:46]} Qxf6 {[%emt 0:00:15]} 5. e4 {[%emt 0:00:38]} d6 {[%emt 0:04:37]} 6. Nc3 {[%emt 0:04:07]} c6 {[%emt 0:04:22]} 7. Bd3 {[%emt 0:05:44]} e5 {[%emt 0:03:14]} 8. d5 {[%emt 0:03:15]} Be7 {[%emt 0:01:28]} 9. h3 {[%emt 0:01:09]} Nd7 {[%emt 0:05:08]} 10. Qe2 {[%emt 0:02:08]} c5 {[%emt 0:10:25]} 11. a4 {[%emt 0:02:14]} O-O {[%emt 0:04:52]} 12. a5 {[%emt 0:02:41]} Rd8 {[%emt 0:07:57]} 13. a6 {[%emt 0:03:51]} b6 {[%emt 0:04:17]} 14. Bb5 {[%emt 0:04:05]} Nf8 {[%emt 0:00:58]} 15. Bc6 {[%emt 0:01:07]} Rb8 {[%emt 0:00:12]} 16. Nb5 {[%emt 0:00:48]} Bd7 {[%emt 0:08:19]} 17. Nxa7 {[%emt 0:01:51]} Ra8 {[%emt 0:05:00]} 18. Bxa8 {[%emt 0:01:03]} Rxa8 {[%emt 0:00:09]} 19. Nc6 {[%emt 0:00:36]} Bxc6 {[%emt 0:02:57]} 20. dxc6 {[%emt 0:00:12]} Ne6 {[%emt 0:01:14]} 21. g3 {[%emt 0:00:49]} Ra7 {[%emt 0:03:07]} 22. c3 {[%emt 0:01:19]} Bd8 {[%emt 0:04:36]} 23. Nd2 {[%emt 0:01:01]} Bc7 {[%emt 0:00:53]} 24. Nf1 {[%emt 0:01:01]} Nd8 {[%emt 0:01:30]} 25. Ne3 {[%emt 0:01:08]} Nxc6 {[%emt 0:04:54]} 26. Nd5 {[%emt 0:00:09]} Qd8 {[%emt 0:01:57]} 27. Qb5 {[%emt 0:01:27]} Nb8 {[%emt 0:02:38]} 28. O-O {[%emt 0:00:44]} Nd7 {[%emt 0:02:21]} 29. Rfd1 {[%emt 0:03:45]} Bb8 {[%emt 0:02:28]} 30. Qc6 {[%emt 0:01:17]} f6 {[%emt 0:01:02]} 31. Qc8 {[%emt 0:02:41]} Qf8 {[%emt 0:01:49]} 32. Ne7+ {[%emt 0:00:54]} Kf7 {[%emt 0:00:11]} 33. Qxf8+ {[%emt 0:00:08]} Kxf8 {[%emt 0:00:10]} 34. Nc6 {[%emt 0:00:03]} Ra8 {[%emt 0:00:13]} 35. Nxb8 {[%emt 0:00:07]} Rxb8 {[%emt 0:00:12]} 36. Rxd6 {[%emt 0:00:12]} Ke7 {[%emt 0:00:13]} 37. Rad1 {[%emt 0:00:05]} Nf8 {[%emt 0:00:12]} 38. Rd8 {[%emt 0:00:08]} Rxd8 {[%emt 0:00:16]} 39. Rxd8 {[%emt 0:00:04]} Kxd8 {[%emt 0:00:12]} 40. a7 {[%emt 0:00:03]} Kc7 {[%emt 0:00:13]} 41. a8=Q {[%emt 0:00:05]} Nd7 {[%emt 0:00:11]} 42. Qg8 {[%emt 0:00:05]} g5 {[%emt 0:00:13]} 43. Qh7 {[%emt 0:00:05]} Kd6 {[%emt 0:00:10]} 44. Qxh6 {[%emt 0:00:03]} Ke6 {[%emt 0:00:13]} 45. h4 {[%emt 0:00:02]} 1-0

[Event "48th Indian U15-ch Girls 2023"]
[Site "Jalgaon"]
[Date "2023.12.27"]
[Round "1.3"]
[White "Shreya Piplani"]
[Black "Sachi Jain"]
[Result "0-1"]
[WhiteElo "1265"]
[BlackElo "1844"]
[PlyCount "102"]
[EventDate "2023.12.30"]
[EventType "swiss"]
[EventCountry "IND"]
[TimeControl "5400+30"]

1. d4 {[%emt 0:00:05]} d5 {[%emt 0:00:26]} 2. Bf4 {[%emt 0:00:14]} e6 {[%emt 0:00:18]} 3. e3 {[%emt 0:00:20]} Nf6 {[%emt 0:00:26]} 4. c3 {[%emt 0:00:36]} Be7 {[%emt 0:00:49]} 5. Nf3 {[%emt 0:00:15]} O-O {[%emt 0:00:20]} 6. Bd3 {[%emt 0:00:14]} c5 {[%emt 0:00:21]} 7. Nbd2 {[%emt 0:01:06]} b6 {[%emt 0:00:30]} 8. h3 {[%emt 0:01:20]} Bb7 {[%emt 0:01:01]} 9. O-O {[%emt 0:00:45]} Nbd7 {[%emt 0:01:29]} 10. Re1 {[%emt 0:01:34]} Rc8 {[%emt 0:00:31]} 11. Qe2 {[%emt 0:00:51]} c4 {[%emt 0:05:50]} 12. Bc2 {[%emt 0:02:04]} b5 {[%emt 0:00:24]} 13. Rab1 {[%emt 0:03:01]} b4 {[%emt 0:06:09]} 14. Rec1 {[%emt 0:06:53]} Qa5 {[%emt 0:01:47]} 15. cxb4 {[%emt 0:09:06]} Bxb4 {[%emt 0:01:02]} 16. a3 {[%emt 0:02:16]} Be7 {[%emt 0:00:59]} 17. Rd1 {[%emt 0:03:00]} Ba6 {[%emt 0:08:07]} 18. Qe1 {[%emt 0:01:30]} Qb6 {[%emt 0:05:49]} 19. Nf1 {[%emt 0:06:30]} Bd6 {[%emt 0:01:33]} 20. Bg3 {[%emt 0:01:41]} Nh5 {[%emt 0:03:52]} 21. Kh2 {[%emt 0:02:03]} Nxg3 {[%emt 0:01:02]} 22. Nxg3 {[%emt 0:00:09]} Qc7 {[%emt 0:00:56]} 23. Qc3 {[%emt 0:02:47]} Nf6 {[%emt 0:03:16]} 24. Nd2 {[%emt 0:00:42]} Nh5 {[%emt 0:05:13]} 25. Ndf1 {[%emt 0:00:57]} f5 {[%emt 0:00:16]} 26. f4 {[%emt 0:00:22]} Nxg3 {[%emt 0:01:12]} 27. Nxg3 {[%emt 0:00:23]} g5 {[%emt 0:01:18]} 28. Kh1 {[%emt 0:11:16]} gxf4 {[%emt 0:00:10]} 29. Nh5 {[%emt 0:03:12]} fxe3 {[%emt 0:00:24]} 30. Qxe3 {[%emt 0:00:07]} Qf7 {[%emt 0:00:38]} 31. Qg5+ {[%emt 0:02:55]} Kh8 {[%emt 0:01:25]} 32. Rf1 {[%emt 0:02:35]} Rg8 {[%emt 0:01:22]} 33. Qf6+ {[%emt 0:00:39]} Qxf6 {[%emt 0:00:03]} 34. Nxf6 {[%emt 0:00:07]} Rg6 {[%emt 0:01:16]} 35. Nh5 {[%emt 0:00:45]} Rg5 {[%emt 0:01:39]} 36. Nf4 {[%emt 0:00:27]} Rcg8 {[%emt 0:00:01]} 37. Bd1 {[%emt 0:03:01]} c3 {[%emt 0:03:34]} 38. Rf2 {[%emt 0:00:44]} Bxf4 {[%emt 0:00:08]} 39. Rxf4 {[%emt 0:00:08]} Rxg2 {[%emt 0:00:03]} 40. Bf3 {[%emt 0:00:35]} c2 {[%emt 0:00:20]} 41. Rc1 {[%emt 0:00:32]} Rg1+ {[%emt 0:00:02]} 42. Rxg1 {[%emt 0:00:10]} Rxg1+ {[%emt 0:00:03]} 43. Kxg1 {[%emt 0:00:06]} c1=Q+ {[%emt 0:00:04]} 44. Kh2 {[%emt 0:00:11]} Qxf4+ {[%emt 0:00:04]} 45. Kg2 {[%emt 0:00:09]} Qxd4 {[%emt 0:00:08]} 46. Kh1 {[%emt 0:00:16]} Qf2 {[%emt 0:00:05]} 47. Bg2 {[%emt 0:00:11]} f4 {[%emt 0:00:03]} 48. h4 {[%emt 0:00:24]} f3 {[%emt 0:00:03]} 49. Bh3 {[%emt 0:00:07]} Bf1 {[%emt 0:00:04]} 50. Bxf1 {[%emt 0:00:10]} Qxf1+ {[%emt 0:00:01]} 51. Kh2 {[%emt 0:00:10]} Qg2# {[%emt 0:00:04]} 0-1

[Event "48th Indian U15-ch Girls 2023"]
[Site "Jalgaon"]
[Date "2023.12.27"]
[Round "1.4"]
[White "Sneha Halder"]
[Black "Archita Agrawal"]
[Result "1-0"]
[WhiteElo "1766"]
[BlackElo "1255"]
[PlyCount "87"]
[EventDate "2023.12.30"]
[EventType "swiss"]
[EventCountry "IND"]
[TimeControl "5400+30"]

1. c4 {[%emt 0:00:10]} Nf6 {[%emt 0:00:33]} 2. g3 {[%emt 0:00:29]} g6 {[%emt 0:00:12]} 3. Bg2 {[%emt 0:00:07]} Bg7 {[%emt 0:00:42]} 4. d4 {[%emt 0:00:42]} d6 {[%emt 0:01:09]} 5. Nc3 {[%emt 0:01:52]} O-O {[%emt 0:01:10]} 6. e3 {[%emt 0:01:07]} Nc6 {[%emt 0:00:57]} 7. Nge2 {[%emt 0:00:47]} Bd7 {[%emt 0:11:00]} 8. O-O {[%emt 0:02:00]} e5 {[%emt 0:03:26]} 9. a3 {[%emt 0:03:57]} a5 {[%emt 0:10:43]} 10. b3 {[%emt 0:06:44]} Qc8 {[%emt 0:06:06]} 11. Re1 {[%emt 0:03:47]} Ne8 {[%emt 0:12:37]} 12. Bb2 {[%emt 0:00:17]} f5 {[%emt 0:09:02]} 13. Nd5 {[%emt 0:01:07]} Nf6 {[%emt 0:01:11]} 14. Nec3 {[%emt 0:01:19]} e4 {[%emt 0:02:49]} 15. Qe2 {[%emt 0:09:38]} Qd8 {[%emt 0:09:37]} 16. b4 {[%emt 0:00:40]} Nxd5 {[%emt 0:03:34]} 17. Nxd5 {[%emt 0:00:23]} Ne7 {[%emt 0:02:22]} 18. Nf4 {[%emt 0:00:47]} Qe8 {[%emt 0:03:55]} 19. d5 {[%emt 0:02:27]} Bxb2 {[%emt 0:01:10]} 20. Qxb2 {[%emt 0:00:05]} g5 {[%emt 0:00:28]} 21. Ne2 {[%emt 0:04:50]} b6 {[%emt 0:03:12]} 22. Qd4 {[%emt 0:01:28]} Ng6 {[%emt 0:01:40]} 23. f4 {[%emt 0:04:37]} exf3 {[%emt 0:01:41]} 24. Bxf3 {[%emt 0:00:02]} Ne5 {[%emt 0:00:16]} 25. Kf2 {[%emt 0:00:54]} Qg6 {[%emt 0:00:42]} 26. h4 {[%emt 0:07:25]} f4 {[%emt 0:00:33]} 27. Be4 {[%emt 0:03:31]} fxg3+ {[%emt 0:00:22]} 28. Kg2 {[%emt 0:02:18]} Rf2+ {[%emt 0:00:42]} 29. Kxg3 {[%emt 0:03:01]} gxh4+ {[%emt 0:00:07]} 30. Kxf2 {[%emt 0:00:46]} Rf8+ {[%emt 0:00:18]} 31. Nf4 {[%emt 0:00:39]} Qg3+ {[%emt 0:01:05]} 32. Ke2 {[%emt 0:00:01]} Bg4+ {[%emt 0:00:28]} 33. Kd2 {[%emt 0:00:20]} Qf2+ {[%emt 0:00:16]} 34. Kc3 {[%emt 0:00:28]} axb4+ {[%emt 0:00:32]} 35. axb4 {[%emt 0:00:05]} h3 {[%emt 0:00:40]} 36. Rf1 {[%emt 0:00:25]} Qh4 {[%emt 0:00:25]} 37. Nd3 {[%emt 0:00:38]} Rxf1 {[%emt 0:01:03]} 38. Rxf1 {[%emt 0:00:02]} Be2 {[%emt 0:00:00]} 39. Rg1+ {[%emt 0:00:07]} Ng4 {[%emt 0:00:08]} 40. Nf4 {[%emt 0:01:26]} h2 {[%emt 0:00:15]} 41. Ra1 {[%emt 0:01:48]} Qf2 {[%emt 0:00:45]} 42. Bxh7+ {[%emt 0:02:57]} Kf7 {[%emt 0:00:59]} 43. Bg6+ {[%emt 0:00:06]} Ke7 {[%emt 0:00:45]} 44. Qg7+ {[%emt 0:00:06]} 1-0

[Event "48th Indian U15-ch Girls 2023"]
[Site "Jalgaon"]
[Date "2023.12.27"]
[Round "1.5"]
[White "Ananya Manisundaram"]
[Black "Arshiya Das"]
[Result "0-1"]
[WhiteElo "1250"]
[BlackElo "1729"]
[PlyCount "64"]
[EventDate "2023.12.30"]
[EventType "swiss"]
[EventCountry "IND"]
[TimeControl "5400+30"]

1. e4 {[%emt 0:01:16]} c5 {[%emt 0:00:04]} 2. Nf3 {[%emt 0:00:06]} d6 {[%emt 0:00:04]} 3. d4 {[%emt 0:00:07]} cxd4 {[%emt 0:00:03]} 4. Nxd4 {[%emt 0:00:05]} Nf6 {[%emt 0:00:03]} 5. Nc3 {[%emt 0:00:08]} a6 {[%emt 0:00:03]} 6. Bg5 {[%emt 0:00:05]} Nbd7 {[%emt 0:00:04]} 7. Bc4 {[%emt 0:00:06]} Qc7 {[%emt 0:07:26]} 8. Bb3 {[%emt 0:01:04]} e6 {[%emt 0:03:45]} 9. Qd2 {[%emt 0:00:08]} b5 {[%emt 0:03:35]} 10. f3 {[%emt 0:02:58]} Bb7 {[%emt 0:05:48]} 11. O-O-O {[%emt 0:03:27]} Nc5 {[%emt 0:02:48]} 12. Bxf6 {[%emt 0:17:31]} gxf6 {[%emt 0:00:08]} 13. Kb1 {[%emt 0:00:42]} O-O-O {[%emt 0:08:07]} 14. a4 {[%emt 0:16:22]} b4 {[%emt 0:04:08]} 15. Na2 {[%emt 0:00:14]} a5 {[%emt 0:00:07]} 16. Nb5 {[%emt 0:02:47]} Qb6 {[%emt 0:02:24]} 17. Qe3 {[%emt 0:12:42]} Nxa4 {[%emt 0:02:41]} 18. Qe2 {[%emt 0:07:55]} Nc5 {[%emt 0:01:00]} 19. Bc4 {[%emt 0:01:06]} Kb8 {[%emt 0:02:18]} 20. Nc1 {[%emt 0:02:08]} Bh6 {[%emt 0:02:44]} 21. Nb3 {[%emt 0:03:26]} Nxb3 {[%emt 0:05:52]} 22. cxb3 {[%emt 0:01:12]} Rhe8 {[%emt 0:06:31]} 23. g3 {[%emt 0:01:13]} d5 {[%emt 0:02:27]} 24. Bd3 {[%emt 0:00:34]} dxe4 {[%emt 0:00:38]} 25. fxe4 {[%emt 0:00:42]} f5 {[%emt 0:04:56]} 26. exf5 {[%emt 0:03:20]} exf5 {[%emt 0:00:06]} 27. Qc2 {[%emt 0:00:33]} Rc8 {[%emt 0:00:12]} 28. Bc4 {[%emt 0:00:14]} Be4 {[%emt 0:00:02]} 29. Rd3 {[%emt 0:00:15]} Bxh1 {[%emt 0:00:28]} 30. Nd6 {[%emt 0:00:15]} Re1+ {[%emt 0:00:36]} 31. Ka2 {[%emt 0:00:44]} Qg1 {[%emt 0:00:16]} 32. Nxc8 {[%emt 0:00:58]} Ra1# {[%emt 0:00:03]} 0-1

[Event "48th Indian U15-ch Girls 2023"]
[Site "Jalgaon"]
[Date "2023.12.27"]
[Round "1.6"]
[White "Rajanya Datta"]
[Black "Sequeira Jennica"]
[Result "1-0"]
[WhiteElo "1688"]
[BlackElo "1248"]
[PlyCount "119"]
[EventDate "2023.12.30"]
[EventType "swiss"]
[EventCountry "IND"]
[TimeControl "5400+30"]

1. e4 {[%emt 0:00:37]} e5 {[%emt 0:00:08]} 2. Nf3 {[%emt 0:00:08]} Nc6 {[%emt 0:00:04]} 3. c3 {[%emt 0:00:17]} Nf6 {[%emt 0:00:09]} 4. d4 {[%emt 0:00:09]} exd4 {[%emt 0:00:42]} 5. e5 {[%emt 0:00:07]} Nd5 {[%emt 0:02:32]} 6. cxd4 {[%emt 0:00:07]} Bb4+ {[%emt 0:01:18]} 7. Bd2 {[%emt 0:00:12]} Bxd2+ {[%emt 0:00:10]} 8. Nbxd2 {[%emt 0:00:09]} d6 {[%emt 0:03:42]} 9. Bb5 {[%emt 0:04:15]} O-O {[%emt 0:05:37]} 10. O-O {[%emt 0:02:42]} dxe5 {[%emt 0:04:44]} 11. dxe5 {[%emt 0:03:18]} Nce7 {[%emt 0:06:37]} 12. Re1 {[%emt 0:11:17]} c6 {[%emt 0:00:21]} 13. Bf1 {[%emt 0:00:21]} Ng6 {[%emt 0:05:27]} 14. Qb3 {[%emt 0:06:47]} Qe7 {[%emt 0:06:27]} 15. a3 {[%emt 0:09:35]} Be6 {[%emt 0:08:21]} 16. Qc2 {[%emt 0:04:47]} Rad8 {[%emt 0:02:42]} 17. g3 {[%emt 0:07:48]} a5 {[%emt 0:05:46]} 18. Bg2 {[%emt 0:06:14]} Rfe8 {[%emt 0:06:21]} 19. Rac1 {[%emt 0:11:12]} Rc8 {[%emt 0:05:21]} 20. Nd4 {[%emt 0:05:14]} c5 {[%emt 0:02:20]} 21. Nb5 {[%emt 0:02:03]} Red8 {[%emt 0:01:55]} 22. Nc4 {[%emt 0:01:42]} b6 {[%emt 0:03:04]} 23. Ncd6 {[%emt 0:03:53]} Rb8 {[%emt 0:01:05]} 24. f4 {[%emt 0:00:35]} Qd7 {[%emt 0:03:58]} 25. f5 {[%emt 0:01:07]} Bxf5 {[%emt 0:00:16]} 26. Qxf5 {[%emt 0:00:07]} Qxf5 {[%emt 0:00:19]} 27. Nxf5 {[%emt 0:00:09]} Nge7 {[%emt 0:00:49]} 28. Nxe7+ {[%emt 0:00:11]} Nxe7 {[%emt 0:00:15]} 29. Rcd1 {[%emt 0:00:04]} Ng6 {[%emt 0:01:59]} 30. Bd5 {[%emt 0:00:58]} Re8 {[%emt 0:00:43]} 31. Nd6 {[%emt 0:00:08]} Re7 {[%emt 0:00:23]} 32. e6 {[%emt 0:01:48]} fxe6 {[%emt 0:00:10]} 33. Bxe6+ {[%emt 0:00:19]} Kh8 {[%emt 0:00:36]} 34. Bb3 {[%emt 0:00:40]} Rc7 {[%emt 0:00:31]} 35. Nf7+ {[%emt 0:00:15]} Kg8 {[%emt 0:00:07]} 36. Ne5+ {[%emt 0:00:18]} Kh8 {[%emt 0:00:24]} 37. Nxg6+ {[%emt 0:00:07]} hxg6 {[%emt 0:00:14]} 38. Re4 {[%emt 0:00:04]} g5 {[%emt 0:00:20]} 39. Rd5 {[%emt 0:00:13]} Rbc8 {[%emt 0:00:30]} 40. Bc4 {[%emt 0:00:20]} Kh7 {[%emt 0:00:17]} 41. Rxg5 {[%emt 0:00:06]} g6 {[%emt 0:00:11]} 42. Rh4+ {[%emt 0:00:07]} Kg7 {[%emt 0:00:06]} 43. Rhg4 {[%emt 0:00:03]} Rc6 {[%emt 0:00:09]} 44. Bd3 {[%emt 0:00:03]} Rd8 {[%emt 0:00:20]} 45. Rxg6+ {[%emt 0:00:12]} Rxg6 {[%emt 0:00:08]} 46. Bxg6 {[%emt 0:00:21]} Rd1+ {[%emt 0:00:18]} 47. Kg2 {[%emt 0:00:06]} Rd2+ {[%emt 0:00:08]} 48. Kh3 {[%emt 0:00:05]} Rxb2 {[%emt 0:00:12]} 49. a4 {[%emt 0:00:11]} Kf6 {[%emt 0:00:41]} 50. Bd3 {[%emt 0:00:16]} Rb4 {[%emt 0:00:23]} 51. Rxb4 {[%emt 0:00:06]} axb4 {[%emt 0:00:26]} 52. g4 {[%emt 0:00:16]} b3 {[%emt 0:00:33]} 53. Kh4 {[%emt 0:00:06]} Ke5 {[%emt 0:01:27]} 54. Bc4 {[%emt 0:02:21]} b2 {[%emt 0:00:21]} 55. Bd3 {[%emt 0:00:03]} Kd4 {[%emt 0:01:15]} 56. Bb1 {[%emt 0:00:05]} Kc3 {[%emt 0:04:56]} 57. g5 {[%emt 0:00:06]} Kd2 {[%emt 0:00:38]} 58. g6 {[%emt 0:00:04]} Kc1 {[%emt 0:00:27]} 59. Be4 {[%emt 0:00:06]} c4 {[%emt 0:00:36]} 60. g7 {[%emt 0:00:06]} 1-0

[Event "48th Indian U15-ch Girls 2023"]
[Site "Jalgaon"]
[Date "2023.12.27"]
[Round "1.7"]
[White "Alana Julieta Menezes Andrade"]
[Black "Saparya Ghosh"]
[Result "0-1"]
[WhiteElo "1218"]
[BlackElo "1662"]
[PlyCount "134"]
[EventDate "2023.12.30"]
[EventType "swiss"]
[EventCountry "IND"]
[TimeControl "5400+30"]

1. e4 {[%emt 0:00:01]} c5 {[%emt 0:01:16]} 2. c3 {[%emt 0:00:06]} Nf6 {[%emt 0:00:09]} 3. e5 {[%emt 0:00:05]} Nd5 {[%emt 0:00:07]} 4. d4 {[%emt 0:00:05]} cxd4 {[%emt 0:00:13]} 5. cxd4 {[%emt 0:00:05]} Nc6 {[%emt 0:00:06]} 6. Nf3 {[%emt 0:00:07]} d6 {[%emt 0:00:09]} 7. Bc4 {[%emt 0:00:21]} Nb6 {[%emt 0:00:07]} 8. Bb5 {[%emt 0:00:06]} Bd7 {[%emt 0:00:05]} 9. O-O {[%emt 0:01:42]} e6 {[%emt 0:07:27]} 10. Nc3 {[%emt 0:02:15]} dxe5 {[%emt 0:09:41]} 11. dxe5 {[%emt 0:00:17]} Be7 {[%emt 0:00:25]} 12. Re1 {[%emt 0:02:00]} O-O {[%emt 0:00:12]} 13. Bf4 {[%emt 0:01:15]} Nb4 {[%emt 0:02:20]} 14. Be2 {[%emt 0:03:59]} N4d5 {[%emt 0:01:18]} 15. Nxd5 {[%emt 0:01:16]} Nxd5 {[%emt 0:00:06]} 16. Bg3 {[%emt 0:00:28]} Qa5 {[%emt 0:06:53]} 17. Bc4 {[%emt 0:03:51]} Rfd8 {[%emt 0:02:50]} 18. Qe2 {[%emt 0:14:29]} Bb4 {[%emt 0:01:56]} 19. Red1 {[%emt 0:01:52]} Ba4 {[%emt 0:04:49]} 20. Rd3 {[%emt 0:05:33]} Rac8 {[%emt 0:05:14]} 21. b3 {[%emt 0:04:02]} Bb5 {[%emt 0:01:21]} 22. Bxb5 {[%emt 0:01:45]} Qxb5 {[%emt 0:00:09]} 23. Qd1 {[%emt 0:01:53]} Qb6 {[%emt 0:01:08]} 24. h3 {[%emt 0:03:35]} h6 {[%emt 0:02:13]} 25. Qe2 {[%emt 0:04:30]} Nc3 {[%emt 0:01:16]} 26. Rxd8+ {[%emt 0:00:41]} Qxd8 {[%emt 0:00:12]} 27. Qe3 {[%emt 0:03:07]} Bc5 {[%emt 0:01:08]} 28. Qe1 {[%emt 0:00:25]} Qd3 {[%emt 0:02:43]} 29. Kh2 {[%emt 0:03:35]} Rd8 {[%emt 0:00:43]} 30. Bf4 {[%emt 0:02:52]} Nd1 {[%emt 0:03:18]} 31. Bg3 {[%emt 0:01:38]} Ba3 {[%emt 0:02:51]} 32. Qa5 {[%emt 0:05:45]} Bb2 {[%emt 0:01:24]} 33. Ne1 {[%emt 0:02:32]} Qd7 {[%emt 0:01:33]} 34. Rb1 {[%emt 0:00:30]} Bc3 {[%emt 0:00:07]} 35. Qxa7 {[%emt 0:05:13]} Bxe1 {[%emt 0:00:22]} 36. Rc1 {[%emt 0:01:15]} Qd2 {[%emt 0:01:00]} 37. Rc7 {[%emt 0:01:08]} Bxf2 {[%emt 0:00:23]} 38. Bxf2 {[%emt 0:00:09]} Nxf2 {[%emt 0:00:07]} 39. Qxb7 {[%emt 0:00:35]} Qf4+ {[%emt 0:00:05]} 40. g3 {[%emt 0:00:25]} Qd2 {[%emt 0:00:35]} 41. Qg2 {[%emt 0:01:19]} Qxa2 {[%emt 0:00:26]} 42. Rc1 {[%emt 0:00:46]} Rd2 {[%emt 0:00:08]} 43. Kg1 {[%emt 0:01:03]} Qa7 {[%emt 0:00:42]} 44. Kf1 {[%emt 0:00:55]} Qe3 {[%emt 0:00:28]} 45. Re1 {[%emt 0:00:29]} Qd3+ {[%emt 0:00:34]} 46. Kg1 {[%emt 0:00:07]} Qd4 {[%emt 0:00:09]} 47. Kf1 {[%emt 0:00:18]} g6 {[%emt 0:00:27]} 48. Re2 {[%emt 0:00:42]} Rd1+ {[%emt 0:00:10]} 49. Re1 {[%emt 0:00:10]} Rxe1+ {[%emt 0:00:29]} 50. Kxe1 {[%emt 0:00:08]} Qe3+ {[%emt 0:00:15]} 51. Kf1 {[%emt 0:00:12]} Ne4 {[%emt 0:00:19]} 52. Qg1 {[%emt 0:01:13]} Nd2+ {[%emt 0:00:18]} 53. Kg2 {[%emt 0:00:15]} Qf3+ {[%emt 0:00:04]} 54. Kh2 {[%emt 0:00:18]} Nf1+ {[%emt 0:00:05]} 55. Qxf1 {[%emt 0:00:06]} Qxf1 {[%emt 0:00:04]} 56. b4 {[%emt 0:00:08]} Qf2+ {[%emt 0:00:22]} 57. Kh1 {[%emt 0:00:13]} Qxg3 {[%emt 0:00:10]} 58. b5 {[%emt 0:00:07]} h5 {[%emt 0:00:23]} 59. b6 {[%emt 0:00:08]} Qxh3+ {[%emt 0:00:10]} 60. Kg1 {[%emt 0:00:06]} Qe3+ {[%emt 0:00:07]} 61. Kh1 {[%emt 0:00:06]} Qxb6 {[%emt 0:00:12]} 62. Kh2 {[%emt 0:00:07]} Qe3 {[%emt 0:00:07]} 63. Kh1 {[%emt 0:00:06]} g5 {[%emt 0:00:07]} 64. Kh2 {[%emt 0:00:05]} g4 {[%emt 0:00:07]} 65. Kh1 {[%emt 0:00:05]} g3 {[%emt 0:00:13]} 66. Kg2 {[%emt 0:00:06]} Qf2+ {[%emt 0:00:04]} 67. Kh1 {[%emt 0:00:18]} Qh2# {[%emt 0:00:03]} 0-1

[Event "48th Indian U15-ch Girls 2023"]
[Site "Jalgaon"]
[Date "2023.12.27"]
[Round "1.8"]
[White "Anupam M Sreekumar"]
[Black "Sandhana D"]
[Result "1-0"]
[WhiteElo "1642"]
[BlackElo "1217"]
[PlyCount "79"]
[EventDate "2023.12.30"]
[EventType "swiss"]
[EventCountry "IND"]
[TimeControl "5400+30"]

1. e4 {[%emt 0:00:22]} e5 {[%emt 0:00:16]} 2. Nf3 {[%emt 0:00:22]} Nc6 {[%emt 0:00:20]} 3. d4 {[%emt 0:00:37]} exd4 {[%emt 0:01:58]} 4. Nxd4 {[%emt 0:00:24]} Bc5 {[%emt 0:04:32]} 5. Nb3 {[%emt 0:02:42]} Bb6 {[%emt 0:02:25]} 6. Nc3 {[%emt 0:01:35]} d6 {[%emt 0:03:42]} 7. Be2 {[%emt 0:16:16]} Nf6 {[%emt 0:02:27]} 8. Bg5 {[%emt 0:01:24]} h6 {[%emt 0:01:23]} 9. Bh4 {[%emt 0:00:43]} g5 {[%emt 0:14:14]} 10. Bg3 {[%emt 0:01:00]} Qe7 {[%emt 0:19:48]} 11. f3 {[%emt 0:15:01]} Bd7 {[%emt 0:04:49]} 12. Qd2 {[%emt 0:02:29]} O-O-O {[%emt 0:01:51]} 13. Na4 {[%emt 0:05:16]} Be6 {[%emt 0:16:55]} 14. Nxb6+ {[%emt 0:05:52]} axb6 {[%emt 0:00:03]} 15. Bb5 {[%emt 0:02:36]} Ne5 {[%emt 0:02:45]} 16. Qc3 {[%emt 0:01:44]} Bd7 {[%emt 0:06:08]} 17. Bxd7+ {[%emt 0:02:18]} Rxd7 {[%emt 0:01:08]} 18. O-O-O {[%emt 0:01:26]} Re8 {[%emt 0:06:49]} 19. Nd4 {[%emt 0:02:27]} h5 {[%emt 0:02:33]} 20. Qa3 {[%emt 0:05:08]} Rdd8 {[%emt 0:02:08]} 21. Qa8+ {[%emt 0:11:43]} Kd7 {[%emt 0:00:01]} 22. Qxb7 {[%emt 0:00:24]} Rb8 {[%emt 0:00:16]} 23. Qa6 {[%emt 0:00:30]} Ra8 {[%emt 0:01:04]} 24. Qb5+ {[%emt 0:00:20]} Kc8 {[%emt 0:00:53]} 25. a3 {[%emt 0:01:20]} h4 {[%emt 0:02:30]} 26. Nc6 {[%emt 0:04:21]} Nxc6 {[%emt 0:00:28]} 27. Qxc6 {[%emt 0:00:03]} Kb8 {[%emt 0:00:31]} 28. Rxd6 {[%emt 0:02:00]} hxg3 {[%emt 0:00:42]} 29. Rxf6 {[%emt 0:00:32]} Rd8 {[%emt 0:00:47]} 30. hxg3 {[%emt 0:01:04]} Qe5 {[%emt 0:00:38]} 31. f4 {[%emt 0:02:49]} gxf4 {[%emt 0:00:42]} 32. gxf4 {[%emt 0:00:30]} Qe7 {[%emt 0:00:13]} 33. Rd1 {[%emt 0:02:31]} Rxd1+ {[%emt 0:00:23]} 34. Kxd1 {[%emt 0:00:03]} Qd8+ {[%emt 0:00:11]} 35. Kc1 {[%emt 0:00:18]} Ra5 {[%emt 0:00:27]} 36. Rxf7 {[%emt 0:01:08]} Rh5 {[%emt 0:00:18]} 37. Qd7 {[%emt 0:01:33]} Rh1+ {[%emt 0:00:56]} 38. Kd2 {[%emt 0:00:04]} Qxd7+ {[%emt 0:00:57]} 39. Rxd7 {[%emt 0:00:02]} Rh2 {[%emt 0:00:24]} 40. Rg7 {[%emt 0:00:05]} 1-0